[Event "AI Cup Div-3 2023"]
[Site "Online"]
[Date "2023.09.25"]
[Round "2.1"]
[White "Esipenko, Andrey"]
[Black "Tomashevsky, Evgeny"]
[Result "0-1"]
[Annotator "TA"]
[ECO "C50"]
[WhiteElo "2683"]
[BlackElo "2694"]
[PlyCount "146"]
[EventDate "2023.09.18"]
[EventType "k.o."]
[EventCountry "NET"]
[SourceTitle "playchess.com"]
[Source "ChessBase"]
[SourceQuality "1"]
[TimeControl "900+3"]

{[%evp 16,146,12,0,0,0,0,-5,-7,0,0,12,39,30,26,35,70,0,0,-380,-352,-388,-384,-390,-382,-396,-292,-288,-265,-242,-244,-316,-208,-237,-241,-227,-223,-210,-202,-427,-428,-420,-404,-462,-446,-2036,-551,-469,-361,-530,-475,-457,0,0,0,0,0,0,0,-32,-28,-108,0,0,1,-662,-530,-5285,-5177,-5120,-5106,-5049,-11,-4557,-4542,-4152,-4168,-4140,-3822,-2326,-432,-1925,0,-1673,-243,-29978,-29979,-29968,-261,-2565,-141,-138,-94,-73,0,-245,-112,-29998,-257,-29959,-482,-450,-356,-29978,-29979,-29983,-29984,-29983,-5608,-4085,-2317,-4587,-2535,-2651,-599,-2376,-2253,-5095,-2798,-29972,-29973,-29972,-29973,-29972,-29974,-29973,-29974,-29971,-29971,-29976,-29975,-29969,-6543]} 1. e4 {[%emt 0:00:22]} e5 {[%emt 0:00:07]} 2. Nf3 {[%emt 0:00:05]} Nc6 {[%emt 0:00:02]} 3. Bc4 {[%emt 0:00:14]} Bc5 {[%emt 0:00:11]} 4. d3 {[%emt 0:00:09]} Nf6 {[%emt 0:00:03]} 5. Nc3 {[%emt 0:00:02]} a6 {[%emt 0:00:09]} 6. Nd5 {[%emt 0:00:04]} h6 {[%emt 0:00:07]} 7. Be3 {[%emt 0:00:08]} d6 {[%emt 0:01:05]} 8. Bxc5 {[%emt 0:00:02]} dxc5 {[%emt 0:00:01]} 9. a4 {[%emt 0:00:00]} Be6 {[%emt 0:01:35]} 10. Ne3 {[%emt 0:00:04]} Qe7 {[%emt 0:00:02]} 11. O-O {[%emt 0:00:18]} Bxc4 {[%emt 0:01:05]} 12. Nxc4 {[%emt 0:00:03]} b6 {[%emt 0:00:02]} 13. Ne3 {[%emt 0:01:02]} g6 {[%emt 0:00:58]} 14. Nd2 {[%emt 0:01:46]} O-O-O {[%emt 0:03:14]} 15. f4 {[%emt 0:00:55]} Rd7 {[%emt 0:00:51]} 16. Qf3 {[%emt 0:00:21]} (16. Qe1 $14) 16... Nd4 $11 {[%emt 0:00:23]} 17. Qf2 $2 {[%emt 0:00:02][%mdl 8192]} (17. Qd1 $1 $11 {and White stays safe.}) 17... exf4 $19 {[%emt 0:00:08]} 18. Nd5 {[%emt 0:03:13]} Nxd5 {[%emt 0:00:43]} 19. exd5 {[%emt 0:00:00]} Nxc2 {[%emt 0:00:20]} 20. Rac1 {[%emt 0:00:11]} Ne3 {[%emt 0:00:01]} 21. Rfe1 {[%emt 0:00:04]} g5 {[%emt 0:00:11]} (21... Rxd5 22. Qxf4 Re5 23. d4 cxd4 24. Qxd4 $17) 22. Nc4 {[%emt 0:01:16]} Rxd5 {[%emt 0:02:08]} 23. a5 {[%emt 0:00:02]} b5 {[%emt 0:00:59]} 24. Nxe3 {[%emt 0:00:05]} fxe3 {[%emt 0:00:04]} 25. Rxe3 {[%emt 0:00:00]} Qd6 {[%emt 0:00:01]} 26. Qxf7 {[%emt 0:00:15]} Rf8 $1 {[%emt 0:00:02]} (26... Rxd3 $2 27. Qf5+ Qd7 28. Qxd3 $18) 27. Qg7 $2 {[%emt 0:01:40]} (27. Qe6+ {was called for.} Kb7 28. Qxd6 cxd6 29. Re7+ Kc6 30. Ra7) 27... Qf4 $19 {[%emt 0:00:31]} (27... Rxd3 28. Rxd3 Qf4 29. Rdd1 $18 (29. Rxc5 $2 Qf1#)) 28. Ree1 {[%emt 0:00:02]} Kb7 {[%emt 0:00:58]} (28... Rd7 29. Qe5 $17) 29. h3 {[%emt 0:01:50]} Rxd3 {[%emt 0:00:08]} (29... Rf7 $2 30. Qg6 $19) 30. Qxh6 {[%emt 0:00:01]} (30. Qe5 $142 c4 31. Qxf4 Rxf4 32. Rc2) 30... Qd4+ {[%emt 0:00:08]} (30... Rd2 $142 {( -> ...Qf2+)} 31. Qxf8 Qxf8) 31. Kh1 $19 {[%emt 0:00:07]} Rf5 {[%emt 0:00:11]} 32. Qh7 {[%emt 0:00:17]} (32. Qe6 $142 Rf2 33. b3) 32... Rd5 {[%emt 0:00:02]} 33. Re7 {[%emt 0:00:04]} Rd7 $2 {[%emt 0:00:05]} (33... Qxb2 {is a self mate.} 34. Rxc7+ Kb8 35. Rb7+ (35. R1xc5 $2 Rd1+ 36. Kh2 Qe5+ 37. g3 Qe2#) 35... Ka8 36. Ra7+ Kb8 37. Qc7#) ({Black should play} 33... Qf4 $19 34. Rce1 Rd1) 34. Rxd7 $15 {[%emt 0:00:45]} Qxd7 {[%emt 0:00:00]} 35. Qxd7 {[%emt 0:00:00]} Rxd7 {[%emt 0:00:01]} 36. Rxc5 {[%emt 0:00:01]} Rd2 {[%emt 0:00:00]} 37. Rxg5 {[%emt 0:00:01]} Rxb2 {[%emt 0:00:01]} 38. h4 {[%emt 0:00:01] [#]} (38. Kh2 $1 $11 {keeps the balance.}) 38... Re2 {[%emt 0:00:07]} ({Better is} 38... Rb4 $1 $17 {[%cal Rb4h4]} 39. g3 Ra4) 39. h5 $11 {[%emt 0:00:12]} b4 {[%emt 0:00:06]} 40. h6 $2 {[%emt 0:00:36][%mdl 8192] [#]} (40. Rg4 $11 c5 41. Rg6) 40... Re6 $1 $19 {[%emt 0:00:01]} 41. Rh5 {[%emt 0:00:01]} b3 {[%emt 0:00:01]} 42. h7 {[%emt 0:00:00]} b2 {[%emt 0:00:02]} 43. h8=Q {[%emt 0:00:03]} b1=Q+ {[%emt 0:00:01]} 44. Kh2 {[%emt 0:00:01]} Re1 {[%emt 0:00:03]} 45. Rh3 {[%emt 0:00:32]} Rh1+ {[%emt 0:00:01]} 46. Kg3 {[%emt 0:00:01]} Qe1+ {[%emt 0:00:03]} 47. Kg4 {[%emt 0:00:02]} Qe4+ {[%emt 0:00:06]} (47... Qe2+ $142 48. Kg3 Rg1) 48. Kg3 $19 {[%emt 0:00:00]} Qe1+ {[%emt 0:00:05]} 49. Kg4 {[%emt 0:00:01]} Qe6+ $2 {[%emt 0:00:04]} (49... Qe2+ 50. Kg3 Rg1) 50. Kg5 $2 {[%emt 0:00:07]} (50. Kf4 $19 Qc4+ 51. Kg3 Qd3+ 52. Kh4 Qe4+ 53. Kg3 Qe1+) 50... Qd5+ {[%emt 0:00:02]} 51. Kf4 {[%emt 0:00:19]} Rb1 $2 {[%emt 0:00:10]} (51... Qd2+ 52. Kg3 Qg5+ 53. Kf2 Qf4+ 54. Ke2 Qe4+ 55. Kf2 Qe1+ 56. Kf3 Rf1+ 57. Kg4 Qe4+ 58. Kh5 Rf5+ 59. Kh6 Qc6+ 60. Kh7 Rf7+ 61. Qg7 Rxg7+ 62. Kxg7 Qxg2+ 63. Kh6 Qxh3+ 64. Kg6 Qf3 65. Kh6 Kc6 66. Kh7 Kd5 67. Kh8 Ke6 68. Kh7 Qg3 69. Kh8 Kf7 70. Kh7 Qh4#) 52. Rf3 $2 {[%emt 0:00:04]} (52. Qc3) 52... Rb4+ $2 {[%emt 0:00:02]} (52... Qxa5 $2 {loses.} 53. Qc3 Qd5 54. Qd3 Rb4+ 55. Kg3 Qg5+ 56. Kh2 $19) (52... Qd6+ $19 53. Ke3 Qe6+ 54. Kf4 Rb4+ 55. Kg3 Qe1+ 56. Kh2 Rh4+ {[%mdl 64] Discovered Attack} 57. Qxh4 Qxh4+ 58. Kg1 Qe1+ 59. Rf1 Qxa5 60. Rb1+ Kc6 61. Rc1+ Kd7 62. Rd1+ Ke6) 53. Kg3 $17 {[%emt 0:00:00]} Qg5+ {[%emt 0:00:01]} 54. Kh3 {[%emt 0:00:08]} Qxa5 {[%emt 0:00:02]} (54... Ka7 $17 55. Rf8 Qd5) 55. Qe8 $2 {[%emt 0:00:04]} (55. Rf8 $11 {and White has nothing to worry.}) 55... Qd5 {[%emt 0:00:06]} (55... Qg5 $19 {[%csl Gg5][%cal Rb4h4] has better winning chances.} 56. g3 a5) 56. Qe2 $2 {[%emt 0:00:04][%mdl 8192]} (56. Rf8 $17 Ka7 57. Qf7 Rb3+ 58. Kh2 Qe5+ 59. Qf4 Qh5+ 60. Kg1) 56... a5 $2 {[%emt 0:00:02]} (56... Qh5+ {mates} 57. Kg3 Qh4#) 57. Kh2 $2 {[%emt 0:00:01]} (57. Rf6 $19 Rb5 58. Rf4) 57... a4 {[%emt 0:00:01]} (57... Qh5+ $142 58. Kg1 Rb1+ 59. Kf2 Qh4+ 60. g3 Qh2+ 61. Ke3 Rb3+ 62. Kf4 Qxe2 63. Rxb3+ Kc6 64. Re3 Qd2 65. Kf3 a4 66. g4 Qd1+ {[%mdl 64] Deflection} 67. Kg2 Qxg4+ 68. Kh1 Qd1+ 69. Kg2 Qd2+ 70. Kf3 Qxe3+ {[%mdl 64] Remove Defender, Promotion} 71. Kxe3 a3 72. Ke2 a2 73. Kf3 Kd5 74. Kg4 a1=Q 75. Kf4 Qc3 76. Kg5 Qe5+ 77. Kh4 Ke4 78. Kh3 Qg7 79. Kh2 Kf3 80. Kh3 Qh8#) 58. Rd3 {[%emt 0:00:02]} Qc6 {[%emt 0:00:03]} 59. Qe7 $2 {[%emt 0:00:02]} (59. Qd2 $19 Rb5 60. Ra3) 59... Qh6+ {[%emt 0:00:02]} 60. Rh3 {[%emt 0:00:06]} Qf4+ {[%emt 0:00:01]} 61. Rg3 {[%emt 0:00:01]} Qh4+ {[%emt 0:00:01]} (61... Rb3 $142 62. Kh1 Rxg3 63. Qe2 Rb3 64. Qa2 Qf1+ 65. Kh2 Qc1 66. g4 Qe1 67. Qg2+ Kb8 68. Qc2 Qg3+ 69. Kh1 Qh3+ 70. Kg1 Rg3+ 71. Kf2 Qh2+ {[%mdl 64] Skewer} 72. Kf1 Rg1#) 62. Qxh4 $19 {[%emt 0:00:01]} Rxh4+ {[%emt 0:00:00]} 63. Kg1 {[%emt 0:00:00]} Kb6 {[%emt 0:00:01]} 64. Kf2 {[%emt 0:00:02]} c5 {[%emt 0:00:04]} 65. Ke2 {[%emt 0:00:01]} Rd4 {[%emt 0:00:01]} 66. Rg8 {[%emt 0:00:00]} Kb5 {[%emt 0:00:01]} 67. g4 {[%emt 0:00:05]} a3 {[%emt 0:00:01]} 68. Rb8+ {[%emt 0:00:02]} Kc4 {[%emt 0:00:01]} 69. g5 {[%emt 0:00:03]} a2 {[%emt 0:00:03]} ({Don't go for} 69... Re4+ $2 70. Kf3 Rd4 71. Ra8 $19) 70. Ra8 {[%emt 0:00:02]} Kb3 {[%emt 0:00:01]} 71. g6 {[%emt 0:00:02]} Rg4 {[%emt 0:00:01]} 72. Rb8+ {[%emt 0:00:01]} Kc3 {[%emt 0:00:01]} 73. Ra8 {[%emt 0:00:02]} Rxg6 {[%emt 0:00:05]} (73... Kb2 $142 74. Rb8+ Kc3 75. Ra8 Rxg6 76. Kf2 Rb6 77. Ke3 Kb2 78. Ke4 Rb3 79. Ke5 a1=Q 80. Rxa1 Kxa1 81. Kd5 Rc3 82. Ke4 c4 83. Ke5 Rd3 84. Kf4 c3 85. Ke4 Rd1 86. Kf5 c2 87. Kf6 c1=Q 88. Ke5 Qe3+ 89. Kf5 Rf1+ 90. Kg4 Qg1+ 91. Kh3 Rf8 92. Kh4 Rh8#) 0-1

[Event "AI Cup Div-3 2023"]
[Site "Online"]
[Date "2023.09.25"]
[Round "2.1"]
[White "Mamedov, Rauf"]
[Black "Malakhov, Vladimir"]
[Result "1-0"]
[Annotator "ChessBase"]
[ECO "C50"]
[WhiteElo "2640"]
[BlackElo "2646"]
[PlyCount "79"]
[EventDate "2023.09.18"]
[EventType "k.o."]
[EventCountry "NET"]
[SourceTitle "playchess.com"]
[Source "ChessBase"]
[SourceQuality "1"]
[TimeControl "900+3"]

1. e4 {[%emt 0:00:04]} e5 {[%emt 0:00:09]} 2. Nf3 {[%emt 0:00:02]} Nc6 {[%emt 0:00:01]} 3. Bc4 {[%emt 0:00:02]} Bc5 {[%emt 0:00:03]} 4. Nc3 {[%emt 0:00:21]} Nf6 {[%emt 0:00:22]} 5. d3 {[%emt 0:00:01]} O-O {[%emt 0:00:43]} 6. Bg5 {[%emt 0:00:07]} Be7 {[%emt 0:00:23]} 7. h3 {[%emt 0:01:38]} d6 {[%emt 0:00:05]} 8. O-O {[%emt 0:00:24]} Be6 {[%emt 0:00:10]} 9. Bb3 {[%emt 0:00:04]} Qd7 {[%emt 0:01:39]} 10. d4 {[%emt 0:01:57]} exd4 {[%emt 0:00:17]} 11. Nxd4 {[%emt 0:00:03]} Nxd4 {[%emt 0:00:02]} 12. Qxd4 {[%emt 0:00:01]} h6 {[%emt 0:00:55]} 13. Bh4 {[%emt 0:00:45]} Nh5 {[%emt 0:01:46]} 14. Bxe7 {[%emt 0:00:05]} Qxe7 {[%emt 0:00:02]} 15. f4 {[%emt 0:00:30]} Nf6 {[%emt 0:00:57]} 16. Rae1 {[%emt 0:00:10]} Bxb3 {[%emt 0:01:04]} 17. axb3 {[%emt 0:00:02]} c6 {[%emt 0:00:01]} 18. Rf3 {[%emt 0:02:40]} Rfe8 {[%emt 0:01:28]} 19. Rfe3 {[%emt 0:01:19]} a6 {[%emt 0:01:30]} 20. e5 {[%emt 0:00:43]} dxe5 {[%emt 0:00:04]} 21. fxe5 {[%emt 0:00:03]} Nd7 {[%emt 0:00:08]} 22. Ne4 {[%emt 0:00:02]} Red8 {[%emt 0:01:11]} 23. Nd6 {[%emt 0:00:15]} Nxe5 {[%emt 0:01:34]} 24. Nf5 {[%emt 0:00:20]} Rxd4 {[%emt 0:00:02]} 25. Nxe7+ {[%emt 0:00:01]} Kf8 {[%emt 0:00:01]} 26. Rxe5 {[%emt 0:00:02]} g6 {[%emt 0:00:01]} 27. Rf1 {[%emt 0:00:21]} Rd6 {[%emt 0:00:17]} 28. h4 {[%emt 0:00:45]} h5 {[%emt 0:00:19]} 29. c4 {[%emt 0:00:05]} Kg7 {[%emt 0:00:04]} 30. Rg5 {[%emt 0:00:04]} Rd3 {[%emt 0:00:42]} 31. Nf5+ {[%emt 0:00:11]} Kh7 {[%emt 0:00:01]} 32. Ng3 {[%emt 0:00:07]} f5 {[%emt 0:00:01]} 33. Re1 {[%emt 0:00:14]} Rd7 {[%emt 0:00:11]} 34. Re6 {[%emt 0:00:04]} Rg8 {[%emt 0:00:03]} 35. Ne2 {[%emt 0:00:04]} Rd3 {[%emt 0:00:18]} 36. Nf4 {[%emt 0:00:06]} Rxb3 {[%emt 0:00:01]} 37. Nxg6 {[%emt 0:00:24]} Rxb2 {[%emt 0:00:03]} 38. Rxh5+ {[%emt 0:00:10]} Kg7 {[%emt 0:00:02]} 39. Rxf5 {[%emt 0:00:18]} Rd8 {[%emt 0:00:06]} 40. Ne5 {[%emt 0:00:07]} 1-0

[Event "AI Cup Div-3 2023"]
[Site "Online"]
[Date "2023.09.25"]
[Round "2.1"]
[White "Meier, Georg"]
[Black "Rakhmanov, Aleksandr"]
[Result "1/2-1/2"]
[Annotator "ChessBase"]
[ECO "D79"]
[WhiteElo "2628"]
[BlackElo "2614"]
[PlyCount "114"]
[EventDate "2023.09.18"]
[EventType "k.o."]
[EventCountry "NET"]
[SourceTitle "playchess.com"]
[Source "ChessBase"]
[SourceQuality "1"]
[TimeControl "900+3"]

1. Nf3 {[%emt 0:00:04]} d5 {[%emt 0:00:15]} 2. g3 {[%emt 0:00:01]} g6 {[%emt 0:00:01]} 3. d4 {[%emt 0:00:01]} Bg7 {[%emt 0:00:03]} 4. Bg2 {[%emt 0:00:01]} Nf6 {[%emt 0:00:00]} 5. c4 {[%emt 0:00:01]} c6 {[%emt 0:00:02]} 6. cxd5 {[%emt 0:00:01]} cxd5 {[%emt 0:00:01]} 7. Nc3 {[%emt 0:00:00]} O-O {[%emt 0:00:01]} 8. Ne5 {[%emt 0:00:01]} e6 {[%emt 0:00:09]} 9. O-O {[%emt 0:00:02]} Bd7 {[%emt 0:00:03]} 10. Qb3 {[%emt 0:00:03]} Bc6 {[%emt 0:00:06]} 11. e3 {[%emt 0:00:28]} Qb6 {[%emt 0:00:10]} 12. Nxc6 {[%emt 0:00:24]} bxc6 {[%emt 0:00:41]} 13. Qc2 {[%emt 0:00:05]} Nbd7 {[%emt 0:00:09]} 14. Na4 {[%emt 0:00:42]} Qb7 {[%emt 0:00:33]} 15. Bd2 {[%emt 0:01:17]} a5 {[%emt 0:00:04]} 16. Rfc1 {[%emt 0:00:22]} Rfc8 {[%emt 0:00:03]} 17. a3 {[%emt 0:00:07]} Ne8 {[%emt 0:02:24]} 18. Rab1 {[%emt 0:01:24]} Nd6 {[%emt 0:00:15]} 19. Be1 {[%emt 0:00:05]} Nc4 {[%emt 0:00:51]} 20. Bf1 {[%emt 0:00:02]} Ncb6 {[%emt 0:01:19]} 21. Qb3 {[%emt 0:00:24]} Rcb8 {[%emt 0:01:58]} 22. Rc2 {[%emt 0:00:32]} e5 {[%emt 0:00:15]} 23. Rbc1 {[%emt 0:06:10]} exd4 {[%emt 0:00:36]} 24. Rxc6 {[%emt 0:00:04]} Nxa4 {[%emt 0:00:22]} 25. Qxa4 {[%emt 0:00:11]} Ne5 {[%emt 0:00:59]} 26. Rc7 {[%emt 0:00:10]} Qxb2 {[%emt 0:04:10]} 27. exd4 {[%emt 0:00:12]} Nf3+ {[%emt 0:00:07]} 28. Kg2 {[%emt 0:00:01]} Nxe1+ {[%emt 0:00:11]} 29. Rxe1 {[%emt 0:00:00]} Qxd4 {[%emt 0:00:03]} 30. Qd7 {[%emt 0:02:03]} Rf8 {[%emt 0:00:05]} 31. Re7 {[%emt 0:00:35]} Rad8 {[%emt 0:00:04]} 32. Qb5 {[%emt 0:00:01]} Bf6 {[%emt 0:00:16]} 33. Re3 {[%emt 0:00:46]} a4 {[%emt 0:00:05]} 34. Rf3 {[%emt 0:00:04]} Rd6 {[%emt 0:00:13]} 35. Rf4 {[%emt 0:00:05]} Qb2 {[%emt 0:00:08]} 36. Qxa4 {[%emt 0:00:02]} Kg7 {[%emt 0:00:02]} 37. Rc2 {[%emt 0:00:04]} Qb7 {[%emt 0:00:02]} 38. Be2 {[%emt 0:00:05]} Ra8 {[%emt 0:00:02]} 39. Qb4 {[%emt 0:00:06]} Qxb4 {[%emt 0:00:01]} 40. axb4 {[%emt 0:00:02]} Be5 {[%emt 0:00:01]} 41. Rf3 {[%emt 0:00:01]} h5 {[%emt 0:00:08]} 42. b5 {[%emt 0:00:02]} Bd4 {[%emt 0:00:03]} 43. Rb3 {[%emt 0:00:03]} Bb6 {[%emt 0:00:01]} 44. Bf3 {[%emt 0:00:00]} Rad8 {[%emt 0:00:01]} 45. Rc6 {[%emt 0:00:04]} Rf6 {[%emt 0:00:01]} 46. h3 {[%emt 0:00:03]} Rdd6 {[%emt 0:00:01]} 47. Rbc3 {[%emt 0:00:05]} d4 {[%emt 0:00:02]} 48. Rd3 {[%emt 0:00:02]} Rfe6 {[%emt 0:00:03]} 49. Kf1 {[%emt 0:00:02]} Kf8 {[%emt 0:00:01]} 50. h4 {[%emt 0:00:05]} Kg7 {[%emt 0:00:02]} 51. Kg2 {[%emt 0:00:02]} Rf6 {[%emt 0:00:01]} 52. Kg1 {[%emt 0:00:02]} Kf8 {[%emt 0:00:03]} 53. Kf1 {[%emt 0:00:01]} Rfe6 {[%emt 0:00:02]} 54. Bg2 {[%emt 0:00:04]} Kg7 {[%emt 0:00:01]} 55. Bf3 {[%emt 0:00:03]} Kf8 {[%emt 0:00:01]} 56. Rc8+ {[%emt 0:00:08]} Kg7 {[%emt 0:00:01]} 57. Rc6 {[%emt 0:00:02]} Kf8 {[%emt 0:00:01]} 1/2-1/2

[Event "AI Cup Div-3 2023"]
[Site "Online"]
[Date "2023.09.25"]
[Round "2.1"]
[White "Paravyan, David"]
[Black "Sevian, Samuel"]
[Result "1/2-1/2"]
[Annotator "TA"]
[ECO "B07"]
[WhiteElo "2599"]
[BlackElo "2698"]
[PlyCount "52"]
[EventDate "2023.09.18"]
[EventType "k.o."]
[EventCountry "NET"]
[SourceTitle "playchess.com"]
[Source "ChessBase"]
[SourceQuality "1"]
[TimeControl "900+3"]

{[%evp 11,52,47,58,39,35,33,70,59,76,64,72,64,78,66,89,98,82,50,80,68,87,57,89,64,75,62,61,39,37,60,43,57,59,29,27,0,0,0,37,0,0,0,49]} 1. e4 {[%emt 0:00:03]} Nc6 {[%emt 0:00:06]} 2. Nf3 {[%emt 0:00:02]} d6 {[%emt 0:00:03]} 3. d4 {[%emt 0:00:01]} g6 {[%emt 0:00:04]} 4. d5 {[%emt 0:00:02]} Nb8 {[%emt 0:00:02][%cal Bc6b8,Bb8a6,Ba6c5][%mdl 32]} 5. Bd3 {[%emt 0:00:06]} Bg7 {[%emt 0:00:01]} 6. O-O {[%emt 0:00:01]} Nf6 {[%emt 0:00:01]} 7. Re1 {[%emt 0:00:01] B07: Pirc Defence: Miscellaneous Systems.} O-O {[%emt 0:00:00]} 8. h3 {[%emt 0:00:02]} c6 {[%emt 0:00:01]} 9. c4 {[%emt 0:00:02] White is slightly better.} Na6 {[%emt 0:00:00]} 10. Nc3 {[%emt 0:00:02]} Nc5 {[%emt 0:00:01]} 11. Bc2 {[%emt 0:00:01]} a5 {[%emt 0:00:06]} 12. Be3 {[%emt 0:00:02]} cxd5 {[%emt 0:00:31]} 13. exd5 {[%emt 0:00:07]} Bd7 {[%emt 0:00:19]} 14. Qe2 {[%emt 0:00:11]} Re8 {[%emt 0:00:02]} 15. Rad1 {[%emt 0:00:22] [#]} Rc8 $146 {[%emt 0:00:47]} ({Predecessor:} 15... a4 16. Bd4 Qa5 17. Qd2 Rac8 18. Re3 Na6 19. Qe2 e5 20. dxe6 Bxe6 21. b3 axb3 22. axb3 {0-1 Manukyan,S (2253)-Matinian,N (2475) Titled Tuesday intern op 5th May blitz 2020 (5)}) 16. a3 {[%emt 0:00:39] White is more active.} Nh5 {[%emt 0:02:07]} 17. Qd2 {[%emt 0:00:18]} (17. Nd4 {keeps more tension.} a4 18. Ndb5 Qa5 19. g4) 17... Nf6 {[%emt 0:00:42][%cal Bh5f6,Bf6d7,Bd7b6][%mdl 32]} 18. Nd4 {[%emt 0:03:26]} a4 {[%emt 0:00:03]} 19. Ncb5 {[%emt 0:01:47]} Bxb5 {[%emt 0:00:20]} 20. Nxb5 {[%emt 0:00:06]} Nfd7 {[%emt 0:00:01]} 21. Bd4 {[%emt 0:00:44]} Bxd4 {[%emt 0:01:56]} 22. Qxd4 {[%emt 0:00:04]} Nb6 $1 {[%emt 0:00:06]} 23. Na7 {[%emt 0:02:39]} Ra8 {[%emt 0:00:22]} 24. Nb5 {[%emt 0:00:01]} Rc8 $1 {[%emt 0:00:03]} 25. Na7 {[%emt 0:01:34]} (25. Qf4 $5 {[%cal Rd1d4]}) 25... Ra8 {[%emt 0:00:26]} 26. Nb5 {[%emt 0:00:04]} Rc8 $1 {[%emt 0:00:38] Weighted Error Value: White=0.15 (very precise) /Black=0.07 (flawless)} 1/2-1/2

[Event "AI Cup Div-3 2023"]
[Site "Online"]
[Date "2023.09.25"]
[Round "2.1"]
[White "Vaibhav, Suri"]
[Black "Alekseev, Evgeny"]
[Result "0-1"]
[Annotator "ChessBase"]
[ECO "C65"]
[WhiteElo "2588"]
[BlackElo "2573"]
[PlyCount "52"]
[EventDate "2023.09.18"]
[EventType "k.o."]
[EventCountry "NET"]
[SourceTitle "playchess.com"]
[Source "ChessBase"]
[SourceQuality "1"]
[TimeControl "900+3"]

1. e4 {[%emt 0:00:12]} e5 {[%emt 0:00:08]} 2. Nf3 {[%emt 0:00:01]} Nc6 {[%emt 0:00:07]} 3. Bb5 {[%emt 0:00:02]} Nf6 {[%emt 0:00:02]} 4. d3 {[%emt 0:00:00]} Bc5 {[%emt 0:00:03]} 5. Ba4 {[%emt 0:00:01]} O-O {[%emt 0:00:28]} 6. O-O {[%emt 0:00:02]} d6 {[%emt 0:00:07]} 7. c3 {[%emt 0:00:03]} Ne7 {[%emt 0:00:38]} 8. h3 {[%emt 0:00:02]} Ng6 {[%emt 0:00:04]} 9. Re1 {[%emt 0:00:03]} Bb6 {[%emt 0:00:18]} 10. d4 {[%emt 0:00:30]} c6 {[%emt 0:00:22]} 11. Bc2 {[%emt 0:00:01]} Re8 {[%emt 0:00:14]} 12. Nbd2 {[%emt 0:00:22]} h6 {[%emt 0:00:04]} 13. Nf1 {[%emt 0:05:26]} Nh7 {[%emt 0:00:54]} 14. Ng3 {[%emt 0:00:16]} Ng5 {[%emt 0:00:18]} 15. Be3 {[%emt 0:00:47]} Qf6 {[%emt 0:00:11]} 16. Nh2 {[%emt 0:02:53]} Be6 {[%emt 0:03:00]} 17. Nh5 {[%emt 0:01:26]} Qe7 {[%emt 0:00:19]} 18. f4 {[%emt 0:00:09]} exf4 {[%emt 0:01:04]} 19. Nxf4 {[%emt 0:00:40]} Nxf4 {[%emt 0:00:10]} 20. Bxf4 {[%emt 0:00:01]} Bxh3 {[%emt 0:00:42]} 21. e5 {[%emt 0:00:29]} dxe5 {[%emt 0:00:10]} 22. Rxe5 {[%emt 0:00:02]} Qf6 {[%emt 0:00:29]} 23. Qe2 {[%emt 0:01:28]} Bd7 {[%emt 0:00:37]} 24. Rf1 {[%emt 0:00:02]} Rxe5 {[%emt 0:00:38]} 25. Bxe5 {[%emt 0:00:01]} Qe7 {[%emt 0:00:10]} 26. Ng4 {[%emt 0:01:07]} Bxg4 {[%emt 0:00:08]} 0-1

[Event "AI Cup Div-3 2023"]
[Site "Online"]
[Date "2023.09.25"]
[Round "2.2"]
[White "Sevian, Samuel"]
[Black "Paravyan, David"]
[Result "1-0"]
[Annotator "TA"]
[ECO "A13"]
[WhiteElo "2698"]
[BlackElo "2599"]
[PlyCount "89"]
[EventDate "2023.09.18"]
[EventType "k.o."]
[EventCountry "NET"]
[SourceTitle "playchess.com"]
[Source "ChessBase"]
[SourceQuality "1"]
[TimeControl "900+3"]

{[%evp 14,89,7,17,22,-7,0,-29,0,-18,-24,-33,0,0,35,35,48,0,25,33,39,39,65,65,35,50,47,57,54,50,71,60,97,86,102,96,152,124,118,120,128,104,128,121,168,168,168,168,170,168,168,168,169,168,385,385,377,371,602,337,343,247,305,320,315,305,929,939,1154,1121,1117,1111,1065,1036,2378,2293,1517,1088]} 1. Nf3 {[%emt 0:00:03]} d5 {[%emt 0:00:04]} 2. e3 {[%emt 0:00:01]} Nf6 {[%emt 0:00:02]} 3. c4 {[%emt 0:00:02]} e6 {[%emt 0:00:00]} 4. b3 {[%emt 0:00:00]} c5 {[%emt 0:00:04]} 5. Bb2 {[%emt 0:00:07]} Nc6 {[%emt 0:00:01]} 6. cxd5 {[%emt 0:00:03]} exd5 {[%emt 0:00:00]} 7. Bb5 {[%emt 0:00:01]} Bd6 {[%emt 0:00:05]} 8. O-O {[%emt 0:00:09]} O-O {[%emt 0:00:01] A13: English Opening: 1...e6.} 9. Bxc6 {[%emt 0:00:20]} bxc6 {[%emt 0:00:03]} 10. d3 {[%emt 0:00:01]} a5 {[%emt 0:00:04][%cal Oa5a4] Black has an edge.} 11. Nbd2 {[%emt 0:05:12] [#]} Re8 $146 {[%emt 0:01:41]} ({Predecessor:} 11... a4 12. Be5 Be7 13. Qc2 Bf5 14. Rfd1 Nd7 15. Bg3 Qa5 16. Rac1 Qb5 17. e4 Be6 18. Re1 h6 {½-½ Rakhmanov,A (2640)-Potkin,V (2571) RUS-chT 29th 2022 (1.1)}) 12. Rc1 {[%emt 0:00:06]} Bf5 {[%emt 0:00:15]} 13. d4 {[%emt 0:01:54]} cxd4 {[%emt 0:00:24]} 14. Nxd4 {[%emt 0:00:20]} Bg4 {[%emt 0:00:03]} 15. f3 {[%emt 0:00:33]} (15. Nxc6 $14 Bxh2+ 16. Kh1) 15... Bd7 {[%emt 0:00:24] This pair of bishops is nice.} 16. Nxc6 {[%emt 0:00:01]} Bxc6 {[%emt 0:00:51]} 17. Rxc6 {[%emt 0:00:01]} Rxe3 {[%emt 0:00:04] [#]} 18. Rxd6 $1 {[%emt 0:00:15][%mdl 64] Decoy} Qxd6 {[%emt 0:00:06] [#]} 19. Nc4 $1 {[%emt 0:00:01][%mdl 64] Pin, Double Attack} Qe6 {[%emt 0:00:06]} (19... Qe7 20. Nxe3) 20. Nxe3 {[%emt 0:00:00]} Qxe3+ {[%emt 0:00:01]} 21. Kh1 {[%emt 0:00:01]} Re8 {[%emt 0:00:42]} 22. Bd4 $1 {[%emt 0:01:33]} ({Of course not} 22. Bxf6 gxf6 23. Qxd5 Qf2 $11) 22... Qe2 {[%emt 0:00:37]} 23. a4 {[%emt 0:00:02]} Nd7 {[%emt 0:02:18]} 24. h3 {[%emt 0:00:00]} f6 {[%emt 0:01:30]} ({Better is} 24... h6) 25. Bc3 {[%emt 0:00:19][%csl LRa5,LRd5][%cal Bd4c3,Bc3a5,Ba5c7][%mdl 96] Discovered Attack} Qxd1 {[%emt 0:00:25]} 26. Rxd1 $16 {[%emt 0:00:00][%mdl 4096] Endgame KRB-KRN} Re3 {[%emt 0:00:04]} 27. Bxa5 {[%emt 0:00:15]} Rxb3 {[%emt 0:00:01]} 28. Rxd5 {[%emt 0:00:02]} Ne5 {[%emt 0:00:04]} (28... Nf8 $16 {was called for.} 29. Rb5 Ra3) 29. Bc7 $1 $18 {[%emt 0:00:12]} Nc4 {[%emt 0:00:14]} 30. Rc5 {[%emt 0:00:55]} Ne3 {[%emt 0:00:08]} 31. a5 {[%emt 0:01:04]} Ra3 {[%emt 0:00:06] [#]} 32. Bb6 $1 {[%emt 0:00:39]} h6 {[%emt 0:00:59]} 33. Kg1 {[%emt 0:00:48] Strongly threatening Kf2.} Kh7 $2 {[%emt 0:00:09]} (33... Kf7 {might work better.} 34. Rc7+ Kg6 35. Bxe3 Rxe3) 34. Kf2 {[%emt 0:00:13]} Nd1+ {[%emt 0:00:48]} 35. Ke2 {[%emt 0:00:01]} Nb2 {[%emt 0:00:52]} (35... Ne3 36. g3 Kg6) 36. Bc7 {[%emt 0:00:39]} Na4 {[%emt 0:00:15]} 37. Rf5 {[%emt 0:00:48] And now Kd2 would win.} Kg6 {[%emt 0:01:05] [#]} 38. g4 $1 {[%emt 0:00:00]} Kf7 {[%emt 0:00:01]} 39. Kd2 {[%emt 0:00:06]} Nc3 $2 {[%emt 0:00:46]} (39... Nb2 40. Kc2 Nc4) 40. Bd6 {[%emt 0:00:11] White is clearly winning.} Nb1+ {[%emt 0:01:31]} 41. Kc2 {[%emt 0:00:01][%cal Od6a3]} Ra1 {[%emt 0:00:09]} 42. Kb2 {[%emt 0:00:00][%mdl 64] Deflection} Ra4 {[%emt 0:00:01]} 43. Kxb1 {[%emt 0:00:01]} g6 {[%emt 0:00:00]} 44. Rb5 {[%emt 0:00:01] Threatens to win with Bb4.} Ke6 {[%emt 0:00:01]} 45. Bf8 {[%emt 0:00:02] Weighted Error Value: White=0.17 (very precise) /Black=0.30} 1-0